fUSD/lending_fUSD_20241107
["ID","MTS","AMOUNT","RATE_DAILY","PERIOD"]
[341515592,1730946638722,-150.0,0.00031785,2]
[341515593,1730946638731,-35.20642881,0.00031799,2]
[341515594,1730946638742,-114.79357119,0.00031799,2]
[341515595,1730946638751,-150.0,0.00031799,2]
[341515596,1730946638759,-150.0,0.000318,2]
[341515597,1730946638768,-150.0,0.00031807,2]
[341515598,1730946638778,-150.0,0.00031809,2]
[341515599,1730946638786,-150.0,0.00031819,2]
[341515600,1730946638795,-150.0,0.00031826,2]
[341515601,1730946638804,-150.0,0.0003184,2]
[341515602,1730946638813,-150.0,0.00031842,2]
[341515603,1730946638822,-150.0,0.00031847,2]
[341515604,1730946638830,-150.0,0.00031857,2]
[341515605,1730946638839,-150.0,0.00031859,2]
[341515606,1730946638848,-150.0,0.0003186,2]
[341515607,1730946638857,-107.74737637,0.00031865,2]
[341515608,1730946639234,-150.0,0.00031746,2]
[341515609,1730946639244,-42.25262363,0.00031865,2]
[341515610,1730946639255,-150.0,0.00031866,2]
[341515611,1730946639267,-150.0,0.00031868,2]
[341515612,1730946639278,-150.0,0.00031868,2]
[341515613,1730946639288,-150.0,0.0003187,2]
[341515614,1730946639297,-150.0,0.00031882,2]
[341515615,1730946639306,-150.0,0.00031885,2]
[341515616,1730946639317,-150.0,0.00031887,2]
[341515617,1730946639327,-150.0,0.00031895,2]
[341515618,1730946639337,-23.09737637,0.000319,2]
[341515619,1730946639388,-150.0,0.00031756,2]
[341515620,1730946639397,-150.0,0.00031809,2]
[341515621,1730946639406,-72.113205,0.000319,2]
[341515632,1730946640529,-150.0,0.00031773,2]
[341515633,1730946640538,-150.0,0.00031876,2]
[341515634,1730946640548,-150.0,0.00031878,2]
[341515635,1730946640560,-267.58362983,0.00031894,2]
[341515636,1730946640570,-888.60612429,0.000319,2]
[341515637,1730946640637,-286.32,0.000319,2]
[341515638,1730946641139,-296.79225351,0.000319,2]
[341515651,1730946643711,-2746.28606917,0.00031732,2]
[341515652,1730946643720,-316.44763256,0.00031899,2]
[341515653,1730946643730,-3448.50363435,0.000319,2]
[341515654,1730946643739,-537.01831357,0.000319,4]
[341515655,1730946643748,-150.0,0.00031904,2]
[341515656,1730946643757,-150.0,0.00031918,2]
[341515657,1730946643766,-150.0,0.0003193,2]
[341515658,1730946643775,-150.0,0.0003193,2]
[341515659,1730946643784,-150.0,0.00031932,2]
[341515660,1730946643794,-150.0,0.00031933,2]
[341515661,1730946643802,-150.0,0.00031933,2]
[341515662,1730946643812,-150.0,0.00031936,2]
[341515663,1730946643821,-150.0,0.00031942,2]
[341515664,1730946643829,-150.0,0.00031949,2]
[341515665,1730946643839,-150.0,0.00031959,2]
[341515667,1730946643848,-150.0,0.00031962,2]
[341515669,1730946643857,-150.0,0.00031965,2]
[341515671,1730946643867,-150.0,0.00031966,2]
[341515673,1730946643876,-150.0,0.00031968,2]
[341515675,1730946643885,-150.0,0.00031969,2]
[341515677,1730946643894,-150.0,0.00031972,2]
[341515679,1730946643903,-150.0,0.00031974,2]
[341515681,1730946643912,-150.0,0.00031978,2]
[341515683,1730946643921,-150.0,0.00031978,2]
[341515684,1730946643930,-150.0,0.00031989,2]
[341515686,1730946643941,-150.0,0.00031991,2]
[341515688,1730946643950,-56542.9019652,0.00031997,3]
[341515691,1730946643962,-3575.47319016,0.00031997,3]
[341515935,1730946646370,-1340.29089161,0.000319,2]
[341515947,1730946646485,-3400.65,0.000319,2]
[341515950,1730946646497,-1205.20000001,0.000319,2]
[341515960,1730946646589,-381.48,0.000319,2]
[341515980,1730946646768,-576.05533553,0.000319,2]
[341517527,1730946662626,201.9488045,0.00023,2]
[341517542,1730946673325,432.099873,0.00027671,2]
[341517543,1730946673609,432.099873,0.00027945,2]
[341517547,1730946750351,156.53,0.00015342,2]
[341517548,1730946769822,150.0,0.00018123,2]
[341517554,1730946888261,13900.0,0.0002,2]
[341517563,1730947037990,405.0,0.0002401,30]
[341517565,1730947118976,150.0,0.0002002,2]
[341517567,1730947295611,156.57,0.00015342,2]
[341518084,1730947629080,-250.0,0.00021,2]
[341518085,1730947629101,-300.0,0.00023,2]
[341518086,1730947629121,-350.0,0.00025,2]
[341518087,1730947629140,-400.0,0.00027,2]
[341518088,1730947629160,-2026.0,0.000273,3]
[341518089,1730947629180,-125.55204784,0.000273,3]
[341518090,1730947633096,-5016.74295283,0.00025919,2]
[341518091,1730947633117,-817.44795216,0.000273,3]
[341518092,1730947633139,-1077.58,0.00028488,2]
[341518093,1730947633160,-1338.06410337,0.00028799,2]
[341518094,1730947640100,-613.73589663,0.00028799,2]
[341518095,1730947640128,-450.0,0.00029,2]
[341518096,1730947640157,-251.36,0.00029507,2]
[341518097,1730947640185,-152.0,0.00029935,3]
[341518098,1730947640214,-251.36,0.00029981,2]
[341518099,1730947640242,-709.76825,0.0003,2]
[341518100,1730947640273,-370.0645,0.0003,2]
[341518101,1730947640300,-1142.33535566,0.0003,7]
[341518102,1730947645740,-270.04452579,0.0003,7]
[341518104,1730947755089,-400.0,0.000284,120]
[341518105,1730947759125,-304.0,0.0002975,2]
[341518106,1730947759148,-16311.52662,0.00029751,2]
[341518107,1730947767943,1023.7,0.00027884,2]
[341518108,1730947768169,-40315.74666,0.00029751,2]
[341518115,1730947832775,-925.0405808,0.00029676,2]
[341518116,1730947832785,-219.6049192,0.00029723,2]
[341518117,1730947832798,-253.1950808,0.00029723,2]
[341518118,1730947832809,-241.17439469,0.00029751,2]
[341518119,1730947832821,-2127.12108198,0.00029751,2]
[341518120,1730947832835,-5562.43124333,0.00029751,2]
[341518121,1730947832848,-154.78,0.00029776,2]
[341518122,1730947832858,-200.0,0.00029802,7]
[341518123,1730947832868,-250.0,0.00029817,2]
[341518124,1730947832879,-3587.62011855,0.0003,7]
[341518125,1730947832889,-400.0,0.0003,120]
[341518126,1730947832899,-214.258,0.0003,2]
[341518127,1730947832909,-7050.83,0.00030146,2]
[341518128,1730947832918,-1023.7,0.00030148,2]
[341518129,1730947832928,-407.28,0.0003016,120]
[341518130,1730947832938,-160.0,0.00030162,2]
[341518131,1730947832948,-2743.73,0.00030176,2]
[341518132,1730947832958,-182.55981201,0.00030316,2]
[341518133,1730947832968,-500.0,0.00030316,2]
[341518134,1730947832978,-500.0,0.00030316,2]
[341518135,1730947832988,-500.0,0.00030316,2]
[341518136,1730947832998,-500.0,0.00030316,2]
[341518137,1730947833007,-356.49827838,0.00030316,2]
[341518138,1730947833018,-23900.0,0.00030317,2]
[341518139,1730947833028,-252.0980128,0.00030335,2]
[341518140,1730947833038,-200.0,0.00030363,2]
[341518141,1730947833048,-183.94,0.0003037,30]
[341518145,1730947833401,-6219.18,0.00030386,120]
[341518146,1730947833411,-250.0,0.0003039,2]
[341518147,1730947833420,-1069.05,0.00030422,2]
[341518148,1730947833430,-150.0,0.00030425,2]
[341518149,1730947833439,-251.36,0.00030455,2]
[341518150,1730947833448,-180.7,0.0003046,2]
[341518151,1730947833458,-156.53,0.00030548,2]
[341518152,1730947833467,-152.0,0.00030575,4]
[341518153,1730947833476,-872.0,0.00030684,2]
[341518154,1730947833486,-160.0,0.00030847,120]
[341518155,1730947833495,-251.36,0.00030929,2]
[341518156,1730947833504,-500.0,0.0003101,30]
[341518157,1730947833514,-532.45964944,0.0003101,30]
[341518158,1730947833523,-830.53894671,0.0003101,30]
[341518159,1730947833532,-500.0,0.0003101,30]
[341518160,1730947833541,-500.0,0.0003101,30]
[341518161,1730947833551,-990.97117497,0.0003101,30]
[341518162,1730947833560,-500.0,0.0003101,30]
[341518163,1730947833570,-500.0,0.0003101,30]
[341518164,1730947833579,-500.0,0.0003101,30]
[341518165,1730947833588,-1000.0,0.000312,2]
[341518166,1730947833600,-152.0,0.00031214,5]
[341518167,1730947833609,-432.58,0.00031233,2]
[341518168,1730947833618,-965.29,0.00031233,2]
[341518169,1730947833628,-443.75,0.00031233,2]
[341518170,1730947833637,-965.29,0.00031233,2]
[341518171,1730947833647,-1000.75,0.00031233,2]
[341518172,1730947833657,-965.29,0.00031233,2]
[341518173,1730947833666,-965.29,0.00031233,2]
[341518174,1730947833676,-860.32,0.00031268,2]
[341518175,1730947833686,-965.29,0.00031268,2]
[341518176,1730947833697,-2072.0,0.000313,5]
[341518177,1730947833707,-251.36,0.00031403,2]
[341518178,1730947833717,-159.963,0.000315,2]
[341518179,1730947833726,-7803.43224062,0.000315,15]
[341518180,1730947833736,-899.38485301,0.000315,2]
[341518181,1730947833745,-277.94,0.0003159,10]
[341518182,1730947833755,-500.0,0.00031599,2]
[341518183,1730947833764,-500.0,0.00031599,2]
[341518184,1730947833774,-340.97008965,0.00031599,2]
[341518185,1730947833784,-210603.04775989,0.000316,2]
[341518186,1730947833797,-2259.99,0.000316,2]
[341518187,1730947833843,-14634.2947921,0.000316,2]
[341518188,1730947833987,157.01,0.00015342,2]
[341518195,1730947839075,-150.057,0.0003,2]
[341518196,1730947839084,-233.44878219,0.000316,2]
[341518197,1730947839112,185.299,0.00022125,2]
[341518198,1730947839188,-14222.70842826,0.000316,2]
[341518207,1730947840479,-18418.50072135,0.000316,2]
[341518208,1730947841159,-12347.8161168,0.000316,2]
[341518209,1730947841199,-1.38404571,0.000316,2]
[341518214,1730947843560,-8604.31485171,0.000316,2]
[341518217,1730947843780,-39.89964561,0.000316,2]
[341518218,1730947844123,-5849.38272378,0.000316,2]
[341518219,1730947844135,-5087.13599558,0.000316,2]
[341518222,1730947846487,-261.59971551,0.000316,2]
[341518226,1730947846501,-344.7,0.000316,2]
[341518228,1730947846711,-5423.60887858,0.000316,2]
[341518229,1730947846724,-1083.12619503,0.000316,2]
[341518230,1730947847262,-516.6483344,0.000316,2]
[341518231,1730947847535,-1362.88769219,0.000316,2]
[341518232,1730947847547,-4454.44991329,0.000316,2]
[341518233,1730947847692,-910.47240023,0.000316,2]
[341518743,1730948385658,164.65,0.00015342,2]
[341518762,1730948826131,-401.06005601,0.00026,2]
[341518763,1730948826151,-643.40165121,0.00026678,2]
[341518765,1730948853114,-1497.59635257,0.00026678,2]
[341518775,1730948945103,-1000.0,0.00026778,2]
[341518776,1730948945125,-196.56024207,0.00027,2]
[341518777,1730948945146,-446.01153554,0.00027,2]
[341518778,1730948945165,-948.0,0.000271,3]
[341518779,1730948945187,-959.48,0.00027219,2]
[341518780,1730948945208,-3320.83425839,0.00027996,2]
[341518781,1730948945238,-4955.69809074,0.00027996,2]
[341518782,1730948945261,-206.99,0.00027996,2]
[341518783,1730948945280,-300.0,0.00028065,2]
[341518784,1730948945301,-1723.34,0.00028066,2]
[341518785,1730948945323,-150.99,0.00028066,2]
[341518786,1730948945350,-619.37,0.00028066,2]
[341518787,1730948945371,-6758.92,0.00028066,2]
[341518788,1730948945393,-7682.74,0.00028795,2]
[341518790,1730948958104,-176.0,0.00029,2]
[341518791,1730948958124,-500.0,0.00029123,2]
[341518792,1730948958144,-863.31,0.00029123,2]
[341518793,1730948958164,-367.7,0.00029123,2]
[341518794,1730948958184,-391.85,0.00029123,2]
[341518795,1730948958204,-154.78,0.00029136,2]
[341518796,1730948958226,-2108.53,0.0002919,2]
[341518797,1730948958247,-3794.03,0.00029192,2]
[341518798,1730948958270,-160.0,0.00029211,120]
[341518799,1730948958291,-1602.1,0.00029254,2]
[341518800,1730948958312,-7682.74,0.00029257,2]
[341518801,1730948958334,-250.0,0.0002929,2]
[341518802,1730948958355,-1969.23,0.00029337,2]
[341518803,1730948958376,-160.0,0.00029359,2]
[341518804,1730948958398,-300.0,0.000294,120]
[341518805,1730948958419,-250.0,0.00029454,2]
[341518806,1730948958440,-645.06,0.00029459,2]
[341518807,1730948958463,-959.48,0.00029483,2]
[341518808,1730948958488,-160.32,0.00029543,2]
[341518809,1730948958511,-156.8,0.00029636,2]
[341518810,1730948958533,-23900.0,0.00029638,2]
[341518811,1730948958554,-200.0,0.00029638,7]
[341518812,1730948958576,-208.9,0.00029674,30]
[341518813,1730948958599,-3076.40298659,0.0002972,2]
[341518814,1730948962707,1000.0,0.0002695,2]
[341518816,1730948971092,-2941.803298,0.0002972,2]
[341518817,1730948974079,-1664.53371541,0.0002972,2]
[341518818,1730948974102,-500.0,0.00029734,2]
[341518819,1730948974123,-500.0,0.00029734,2]
[341518820,1730948974144,-500.0,0.00029734,2]
[341518821,1730948974165,-500.0,0.00029734,2]
[341518822,1730948974187,-189.53846897,0.00029734,2]
[341518823,1730948974208,-400.0,0.0003,120]
[341518824,1730948974231,-164.636,0.0003,2]
[341518825,1730948974252,-500.0,0.0003,2]
[341518826,1730948974272,-566.0256,0.00030035,7]
[341518827,1730948974291,-168.67,0.00030036,2]
[341518828,1730948974312,-346.17,0.00030135,120]
[341518829,1730948974333,-5901.24437562,0.00030183,2]
[341518849,1730949032243,-335.71848731,0.00030183,2]
[341518850,1730949032329,-166.39959477,0.00030183,2]
[341518851,1730949032341,-1279.3775423,0.00030183,2]
[341518852,1730949032352,-904.0,0.00030328,2]
[341518853,1730949032361,-322.53,0.00030417,2]
[341518854,1730949032370,-2683.35752552,0.00030468,2]
[341518855,1730949032379,-166.22,0.00030528,2]
[341518856,1730949032389,-7682.74,0.00030645,2]
[341518857,1730949032398,-10505.07845235,0.00030873,2]
[341518858,1730949032409,-3242.10969315,0.00030873,2]
[341518859,1730949032421,-404.92261432,0.00030873,2]
[341518860,1730949032433,-88.88924018,0.00030873,2]
[341518861,1730949032443,-500.0,0.0003101,30]
[341518862,1730949032453,-449.94196682,0.0003101,30]
[341518863,1730949032465,-50.05803318,0.0003101,30]
[341518864,1730949032474,-500.0,0.0003101,30]
[341518865,1730949032485,-103.12421203,0.000311,5]
[341518866,1730949032545,-4130.87578797,0.000311,5]
[341518867,1730949032555,-7682.74,0.00031108,2]
[341518868,1730949032564,-156.8,0.00031118,2]
[341518869,1730949032573,-965.29,0.00031233,2]
[341518870,1730949032583,-965.29,0.00031233,2]
[341518871,1730949032592,-965.29,0.00031233,2]
[341518872,1730949032602,-965.29,0.00031233,2]
[341518873,1730949032612,-965.29,0.00031233,2]
[341518874,1730949032623,-916.16,0.00031233,2]
[341518875,1730949032635,-938.76073,0.0003128,2]
[341518876,1730949032644,-329.1026,0.000313,2]
[341518877,1730949032653,-1715.52917009,0.000313,15]
[341518882,1730949037719,-1551.40904163,0.000313,15]
[341518883,1730949037731,-863.0962686,0.000313,15]
[341518885,1730949037945,-1585.96061815,0.000313,15]
[341518886,1730949037957,-2165.72162378,0.000313,15]
[341518887,1730949037967,-819.7206,0.000313,2]
[341518888,1730949037977,-4647.6916,0.000313,2]
[341518889,1730949037987,-2060.4043,0.000313,2]
[341518890,1730949037996,-585.34,0.0003139,10]
[341518891,1730949038006,-400.0,0.000314,120]
[341518892,1730949038015,-247.3084,0.000314,2]
[341518893,1730949038024,-2534.9583,0.000314,2]
[341518894,1730949038034,-1004.1851,0.000314,2]
[341518895,1730949038045,-20150.2649,0.000314,2]
[341518896,1730949038055,-299.5518,0.000314,2]
[341518897,1730949038064,-794.6607,0.000314,2]
[341518898,1730949038074,-34027.60923505,0.000314,2]
[341518899,1730949038087,-300.0,0.000314,2]
[341518900,1730949038098,-6873.47004424,0.000314,2]
[341518901,1730949038374,-1989.47898931,0.000314,2]
[341518906,1730949039934,-1367.08,0.000314,2]
[341518907,1730949039945,-3160.4045877,0.000314,2]
[341518908,1730949039956,-1430.38764,0.000314,2]
[341518909,1730949039967,-3964.89,0.000314,2]
[341518910,1730949040176,-1859.72011287,0.000314,2]
[341518911,1730949040189,-671.11125443,0.000314,2]
[341518912,1730949040200,-395.92311807,0.000314,2]
[341518913,1730949040211,-1119.40937037,0.000314,2]
[341518948,1730949042974,-13834.2,0.000314,2]
[341518950,1730949042985,-563.8784653,0.000314,2]
[341518952,1730949042996,-509.97006902,0.000314,2]
[341518953,1730949043238,-3728.46440547,0.000314,2]
[341518954,1730949043250,-11125.56825674,0.000314,2]
[341519044,1730949045725,-243.28205211,0.00031399,2]
[341519046,1730949045735,-30.62196193,0.00031399,2]
[341519047,1730949045747,-469.37803807,0.00031399,2]
[341519048,1730949045757,-500.0,0.00031399,2]
[341519049,1730949045767,-201.93952829,0.00031399,2]
[341519050,1730949045777,-839.5603213,0.000314,2]
[341519051,1730949045789,-1366.3173,0.000314,2]
[341519052,1730949045800,-13988.67336084,0.000314,2]
[341519053,1730949046031,-277.77979186,0.000314,2]
[341519054,1730949046045,-621.66444422,0.000314,2]
[341519055,1730949046059,-292.29160126,0.000314,2]
[341519056,1730949046072,-1186.59452409,0.000314,2]
[341519057,1730949046084,-52.90810786,0.000314,2]
[341519058,1730949046094,-1166.9265,0.000314,2]
[341519070,1730949046400,-203.07208119,0.000314,2]
[341519072,1730949046410,-68.81584992,0.000314,2]
[341519075,1730949046423,-97.81022438,0.000314,2]
[341519077,1730949046433,-877.42992014,0.000314,2]
[341519079,1730949046443,-150.24779774,0.000314,4]
[341519081,1730949046452,-350.79644626,0.00031467,2]
[341519083,1730949046462,-877.42992014,0.00031471,2]
[341519085,1730949046471,-561.14,0.0003149,2]
[341519087,1730949046481,-561.14,0.0003149,2]
[341519089,1730949046492,-561.14,0.0003149,2]
[341519091,1730949046502,-561.14,0.0003149,2]
[341519092,1730949046512,-561.14,0.0003149,2]
[341519094,1730949046521,-4013.36427157,0.0003149,4]
[341519096,1730949046532,-450.0,0.00031499,2]
[341519099,1730949046541,-500.0,0.00031499,2]
[341519101,1730949046552,-500.0,0.00031499,2]
[341519103,1730949046563,-195.36598361,0.00031499,2]
[341519104,1730949046572,-3858.22868902,0.000315,3]
[341519105,1730949046582,-664533.81498977,0.000315,3]
[341519106,1730949046592,-206771.926,0.000315,2]
[341519107,1730949046602,-151.0,0.000315,7]
[341519108,1730949046612,-151.0,0.000315,7]
[341519109,1730949046621,-295.131781,0.000315,7]
[341519110,1730949046632,-151.0,0.000315,7]
[341519111,1730949046645,-644.437825,0.000315,7]
[341519112,1730949046654,-151.0,0.000315,7]
[341519113,1730949046664,-644.437825,0.000315,7]
[341519114,1730949046674,-173.745683,0.000315,7]
[341519115,1730949046683,-151.0,0.000315,7]
[341519116,1730949046693,-151.0,0.000315,7]
[341519117,1730949046702,-173.745683,0.000315,7]
[341519118,1730949046712,-151.0,0.000315,7]
[341519119,1730949046722,-151.0,0.000315,7]
[341519120,1730949046731,-151.0,0.000315,7]
[341519121,1730949046740,-151.0,0.000315,7]
[341519122,1730949046750,-151.0,0.000315,7]
[341519123,1730949046759,-165.701829,0.000315,7]
[341519124,1730949046768,-165.701829,0.000315,7]
[341519125,1730949046778,-151.0,0.000315,7]
[341519126,1730949046787,-3000.0,0.000315,2]
[341519127,1730949046796,-3000.0,0.000315,2]
[341519128,1730949046808,-3000.0,0.000315,2]
[341519129,1730949046818,-3000.0,0.000315,2]
[341519130,1730949046827,-3000.0,0.000315,2]
[341519132,1730949046837,-3000.0,0.000315,2]
[341519133,1730949046846,-3000.0,0.000315,2]
[341519134,1730949046855,-3000.0,0.000315,2]
[341519135,1730949046864,-3000.0,0.000315,2]
[341519136,1730949046873,-3000.0,0.000315,2]
[341519137,1730949046883,-3000.0,0.000315,2]
[341519138,1730949046891,-3000.0,0.000315,2]
[341519139,1730949046900,-3000.0,0.000315,2]
[341519140,1730949046909,-3000.0,0.000315,2]
[341519141,1730949046919,-3000.0,0.000315,2]
[341519142,1730949046928,-3000.0,0.000315,2]
[341519143,1730949046939,-3000.0,0.000315,2]
[341519144,1730949046949,-3000.0,0.000315,2]
[341519145,1730949046959,-3000.0,0.000315,2]
[341519146,1730949046969,-3000.0,0.000315,2]
[341519147,1730949046978,-3000.0,0.000315,2]
[341519148,1730949046988,-3000.0,0.000315,2]
[341519149,1730949046999,-3000.0,0.000315,2]
[341519150,1730949047009,-3000.0,0.000315,2]
[341519151,1730949047019,-3000.0,0.000315,2]
[341519152,1730949047029,-3000.0,0.000315,2]
[341519153,1730949047038,-3000.0,0.000315,2]
[341519154,1730949047047,-151.0,0.000315,7]
[341519155,1730949047056,-284.742803,0.000315,2]
[341519156,1730949047066,-2078.539581,0.000315,7]
[341519157,1730949047075,-2078.539581,0.000315,7]
[341519158,1730949047084,-152.570363,0.000315,7]
[341519159,1730949047093,-151.0,0.000315,7]
[341519160,1730949047102,-151.0,0.000315,7]
[341519161,1730949047112,-151.0,0.000315,7]
[341519162,1730949047121,-151.0,0.000315,7]
[341519163,1730949047131,-154.740018,0.000315,7]
[341519164,1730949047140,-151.0,0.000315,7]
[341519165,1730949047150,-456.608977,0.000315,7]
[341519166,1730949047159,-892.472602,0.000315,7]
[341519167,1730949047168,-456.608977,0.000315,7]
[341519168,1730949047177,-892.472602,0.000315,7]
[341519169,1730949047186,-186.572963,0.000315,7]
[341519170,1730949047196,-186.572963,0.000315,7]
[341519171,1730949047205,-151.0,0.000315,7]
[341519172,1730949047214,-151.0,0.000315,7]
[341519173,1730949047223,-151.0,0.000315,7]
[341519174,1730949047232,-249.77881202,0.000315,7]
[341519175,1730949047242,-253.878033,0.000315,7]
[341519176,1730949047252,-151.0,0.000315,7]
[341519177,1730949047262,-253.878033,0.000315,7]
[341519178,1730949047272,-154.356128,0.000315,7]
[341519179,1730949047281,-151.0,0.000315,7]
[341519180,1730949047290,-151.0,0.000315,7]
[341519181,1730949047301,-400.0,0.0003154,2]
[341519182,1730949047310,-877.42992014,0.00031543,2]
[341519183,1730949047319,-7881.71672224,0.00031567,15]
[341519184,1730949047328,-7682.74,0.00031571,2]
[341519185,1730949047337,-253.878033,0.00031571,7]
[341519186,1730949047346,-152.406946,0.00031571,7]
[341519187,1730949047355,-253.878033,0.00031571,7]
[341519188,1730949047364,-151.0,0.00031571,7]
[341519189,1730949047373,-151.0,0.00031571,7]
[341519190,1730949047382,-5776.7615779,0.00031593,2]
[341519191,1730949047391,-679.981489,0.00031593,2]
[341519192,1730949047400,-224.449515,0.00031599,7]
[341519193,1730949047410,-224.449515,0.00031599,7]
[341519194,1730949047422,-151.0,0.00031599,7]
[341519195,1730949047431,-209.582217,0.00031599,7]
[341519196,1730949047441,-209.582217,0.00031599,7]
[341519197,1730949047451,-151.0,0.00031599,7]
[341519198,1730949047462,-151.0,0.00031599,7]
[341519199,1730949047473,-151.0,0.00031599,7]
[341519200,1730949047483,-151.0,0.00031599,7]
[341519201,1730949047495,-151.0,0.00031599,7]
[341519202,1730949047507,-151.0,0.00031599,7]
[341519203,1730949047517,-151.0,0.00031599,7]
[341519204,1730949047527,-151.0,0.00031599,7]
[341519205,1730949047536,-151.0,0.00031599,7]
[341519206,1730949047546,-151.0,0.00031599,7]
[341519207,1730949047558,-151.0,0.00031599,7]
[341519208,1730949047568,-294.501227,0.00031599,7]
[341519209,1730949047577,-294.501227,0.00031599,7]
[341519210,1730949047586,-456.608977,0.00031599,7]
[341519211,1730949047595,-456.608977,0.00031599,7]
[341519212,1730949047604,-186.572963,0.00031599,7]
[341519213,1730949047613,-186.572963,0.00031599,7]
[341519214,1730949047623,-151.0,0.00031599,7]
[341519215,1730949047634,-151.0,0.00031599,7]
[341519216,1730949047643,-66061.34970779,0.000316,2]
[341519217,1730949047653,-8219.3935,0.000316,2]
[341519218,1730949047662,-2000.0,0.000316,2]
[341519219,1730949047671,-200.0,0.000316,2]
[341519220,1730949047681,-151.0,0.000316,7]
[341519221,1730949047690,-172.852203,0.000316,7]
[341519222,1730949047699,-172.852203,0.000316,7]
[341519223,1730949047710,-200.0,0.000316,2]
[341519224,1730949047719,-151.0,0.000316,7]
[341519225,1730949047728,-151.0,0.000316,7]
[341519226,1730949047737,-180.536283,0.000316,7]
[341519227,1730949047746,-151.0,0.000316,7]
[341519228,1730949047755,-180.536283,0.000316,7]
[341519229,1730949047764,-151.0,0.000316,7]
[341519230,1730949047774,-151.0,0.000316,7]
[341519231,1730949047783,-151.0,0.000316,7]
[341519232,1730949047792,-151.0,0.000316,7]
[341519233,1730949047803,-151.0,0.000316,7]
[341519234,1730949047812,-264.854146,0.000316,7]
[341519235,1730949047822,-264.854146,0.000316,7]
[341519236,1730949047831,-151.0,0.000316,7]
[341519237,1730949047840,-172.73627,0.000316,7]
[341519238,1730949047850,-151.0,0.000316,7]
[341519239,1730949047859,-151.0,0.000316,7]
[341519240,1730949047869,-151.0,0.000316,7]
[341519241,1730949047879,-151.0,0.000316,7]
[341519242,1730949047890,-151.0,0.000316,7]
[341519243,1730949047902,-155.753082,0.000316,7]
[341519244,1730949047913,-187.831117,0.000316,7]
[341519245,1730949047924,-1051.368008,0.000316,7]
[341519246,1730949047933,-1051.368008,0.000316,7]
[341519247,1730949047942,-151.0,0.000316,7]
[341519248,1730949047952,-151.0,0.000316,7]
[341519249,1730949047961,-2000.0,0.000316,2]
[341519250,1730949047971,-200.0,0.000316,2]
[341519251,1730949047980,-151.0,0.000316,7]
[341519252,1730949047990,-151.0,0.000316,7]
[341519253,1730949047999,-151.0,0.000316,7]
[341519254,1730949048008,-151.0,0.000316,7]
[341519255,1730949048017,-151.0,0.000316,7]
[341519256,1730949048027,-644.437825,0.000316,7]
[341519257,1730949048036,-151.0,0.000316,7]
[341519258,1730949048046,-644.437825,0.000316,7]
[341519259,1730949048057,-173.745683,0.000316,7]
[341519260,1730949048066,-151.0,0.000316,7]
[341519261,1730949048075,-155.817976,0.000316,7]
[341519262,1730949048085,-173.745683,0.000316,7]